[Event "*** Titled Tuesday Blitz"]
[Site "Chess.com"]
[Date "2018.09.04"]
[Round "1"]
[White "twitchTriniCupid"]
[Black "XDPS"]
[Result "0-1"]
[WhiteElo "2230"]
[BlackElo "2587"]
[TimeControl "180+2"]
[EndTime "13:44:46 PDT"]
[Termination "XDPS won by resignation"]

1. d4 {[%clk 0:03:01.1]} 1... d5 {[%clk 0:02:34.1]} 2. Nf3 {[%clk 0:02:59.2]}
2... Nf6 {[%clk 0:02:34.5]} 3. c4 {[%clk 0:03:00.5]} 3... dxc4 {[%clk
0:02:35.1]} 4. e3 {[%clk 0:03:01]} 4... Bg4 {[%clk 0:02:34.7]} 5. h3 {[%clk
0:02:59.9]} 5... Bh5 {[%clk 0:02:34.8]} 6. Bxc4 {[%clk 0:02:59.7]} 6... e6
{[%clk 0:02:35.9]} 7. Nc3 {[%clk 0:02:58.9]} 7... a6 {[%clk 0:02:37.1]} 8. a3
{[%clk 0:02:59.3]} 8... Nc6 {[%clk 0:02:38]} 9. b4 {[%clk 0:02:55.3]} 9... Bd6
{[%clk 0:02:38.3]} 10. Bb2 {[%clk 0:02:55.9]} 10... O-O {[%clk 0:02:39.8]} 11.
Rc1 {[%clk 0:02:54.8]} 11... Qe7 {[%clk 0:02:40.5]} 12. Be2 {[%clk 0:02:41.3]}
12... Rad8 {[%clk 0:02:40.2]} 13. Na4 {[%clk 0:02:37.3]} 13... e5 {[%clk
0:02:33.6]} 14. Nxe5 {[%clk 0:02:28.5]} 14... Bxe5 {[%clk 0:02:19]} 15. Bxh5
{[%clk 0:02:26.2]} 15... Bxd4 {[%clk 0:02:17.9]} 16. Bxd4 {[%clk 0:02:15.1]}
16... Rxd4 {[%clk 0:02:12.8]} 17. Qe2 {[%clk 0:02:07.8]} 17... Nxh5 {[%clk
0:01:51.6]} 18. exd4 {[%clk 0:01:56.4]} 18... Qg5 {[%clk 0:01:51.9]} 19. O-O
{[%clk 0:01:56.2]} 19... Nf4 {[%clk 0:01:52.6]} 20. Qg4 {[%clk 0:01:19.9]} 20...
Qxg4 {[%clk 0:01:51.6]} 21. hxg4 {[%clk 0:01:21.8]} 21... Ne2+ {[%clk
0:01:53.4]} 22. Kh2 {[%clk 0:01:22.8]} 22... Nxc1 {[%clk 0:01:55.3]} 23. Rxc1
{[%clk 0:01:24.3]} 23... Rd8 {[%clk 0:01:56.8]} 24. Nc5 {[%clk 0:01:23.6]} 24...
Rxd4 {[%clk 0:01:46]} 25. Nxb7 {[%clk 0:01:24.2]} 25... Ne5 {[%clk 0:01:46.9]}
26. f3 {[%clk 0:01:24.9]} 26... c6 {[%clk 0:01:32.6]} 27. Nc5 {[%clk 0:01:22.3]}
27... Rd2 {[%clk 0:01:30.7]} 28. Kg3 {[%clk 0:01:21.9]} 28... Ra2 {[%clk
0:01:29.6]} 29. Rc3 {[%clk 0:01:18.9]} 29... g5 {[%clk 0:01:07.2]} 30. Nxa6
{[%clk 0:01:16.1]} 30... Ng6 {[%clk 0:01:08.1]} 31. Rc5 {[%clk 0:00:32]} 31...
h6 {[%clk 0:01:07.2]} 32. Rxc6 {[%clk 0:00:32.4]} 32... Nf4 {[%clk 0:01:05.2]}
33. Kh2 {[%clk 0:00:33.1]} 33... Kg7 {[%clk 0:01:02]} 34. b5 {[%clk 0:00:28.6]}
34... Rxa3 {[%clk 0:00:47.9]} 35. Rc2 {[%clk 0:00:16.7]} 35... Rb3 {[%clk
0:00:48.4]} 36. g3 {[%clk 0:00:17.1]} 36... Nd3 {[%clk 0:00:46.5]} 37. Rd2
{[%clk 0:00:15.8]} 37... Ne5 {[%clk 0:00:46.5]} 38. Kg2 {[%clk 0:00:16.5]} 38...
Nxf3 {[%clk 0:00:43.8]} 39. Rd5 {[%clk 0:00:16.1]} 39... Ne1+ {[%clk 0:00:43.4]}
40. Kf2 {[%clk 0:00:16.2]} 40... Nd3+ {[%clk 0:00:44.4]} 41. Ke2 {[%clk
0:00:15.5]} 41... Nb2 {[%clk 0:00:36.7]} 42. Rf5 {[%clk 0:00:11.4]} 42... Nc4
{[%clk 0:00:35]} 43. Kf2 {[%clk 0:00:11]} 43... Nd6 {[%clk 0:00:34.2]} 44. Rd5
{[%clk 0:00:11.9]} 44... Nxb5 {[%clk 0:00:34.4]} 45. Nc5 {[%clk 0:00:13.1]}
45... Rb2+ {[%clk 0:00:33.9]} 46. Kf3 {[%clk 0:00:13.6]} 46... Nc7 {[%clk
0:00:34.8]} 47. Rf5 {[%clk 0:00:14.2]} 47... Rc2 {[%clk 0:00:33.7]} 48. Nd7
{[%clk 0:00:14.1]} 48... Rc3+ {[%clk 0:00:34.5]} 49. Kf2 {[%clk 0:00:15]} 49...
Ne6 {[%clk 0:00:34.6]} 50. Ne5 {[%clk 0:00:15.6]} 50... Rc7 {[%clk 0:00:35.8]}
51. Ke3 {[%clk 0:00:16.1]} 51... Rc3+ {[%clk 0:00:36.6]} 52. Kf2 {[%clk
0:00:17.2]} 52... Rc2+ {[%clk 0:00:37.4]} 53. Ke3 {[%clk 0:00:18.5]} 53... Rc7
{[%clk 0:00:38.9]} 54. Ke4 {[%clk 0:00:18.8]} 54... Re7 {[%clk 0:00:40.4]} 55.
Kd5 {[%clk 0:00:19.9]} 55... Nf8 {[%clk 0:00:41.4]} 56. Kd6 {[%clk 0:00:21]}
56... Ra7 {[%clk 0:00:41.5]} 57. Nc6 {[%clk 0:00:21.8]} 57... Rd7+ {[%clk
0:00:41.7]} 58. Kc5 {[%clk 0:00:21.2]} 58... Ne6+ {[%clk 0:00:42.8]} 59. Kc4
{[%clk 0:00:21.9]} 59... Rc7 {[%clk 0:00:43.5]} 60. Kd5 {[%clk 0:00:22.6]} 60...
Rxc6 {[%clk 0:00:44.1]} 61. Kxc6 {[%clk 0:00:23.4]} 61... Nd4+ {[%clk
0:00:45.1]} 62. Kd5 {[%clk 0:00:25.1]} 62... Nxf5 {[%clk 0:00:47]} 63. gxf5
{[%clk 0:00:26.9]} 63... h5 {[%clk 0:00:44.9]} 64. Ke5 {[%clk 0:00:27.2]} 64...
f6+ {[%clk 0:00:44.5]} 65. Ke4 {[%clk 0:00:28]} 65... Kf7 {[%clk 0:00:45.9]} 66.
Kd5 {[%clk 0:00:28.1]} 66... Ke7 {[%clk 0:00:46.2]} 67. Kc5 {[%clk 0:00:28.6]}
67... h4 {[%clk 0:00:44.2]} 0-1

[Event "*** Titled Tuesday Blitz"]
[Site "Chess.com"]
[Date "2018.09.04"]
[Round "1"]
[White "Bad4life"]
[Black "MrVezunchik"]
[Result "0-1"]
[WhiteElo "2431"]
[BlackElo "2836"]
[TimeControl "180+2"]
[EndTime "13:44:47 PDT"]
[Termination "MrVezunchik won by checkmate"]

1. e4 {[%clk 0:03:01.3]} 1... c5 {[%clk 0:02:59.9]} 2. Nf3 {[%clk 0:03:02.4]}
2... g6 {[%clk 0:03:00.4]} 3. d4 {[%clk 0:03:03.1]} 3... cxd4 {[%clk 0:03:01.4]}
4. Nxd4 {[%clk 0:03:05]} 4... Bg7 {[%clk 0:03:02]} 5. Nc3 {[%clk 0:03:06.5]}
5... Nc6 {[%clk 0:03:02.9]} 6. Be3 {[%clk 0:03:07.6]} 6... Nf6 {[%clk 0:03:04]}
7. Bc4 {[%clk 0:03:08.1]} 7... O-O {[%clk 0:03:04.9]} 8. Bb3 {[%clk 0:03:09.5]}
8... d6 {[%clk 0:03:06.4]} 9. h3 {[%clk 0:03:08.2]} 9... Na5 {[%clk 0:03:06.8]}
10. O-O {[%clk 0:03:07.1]} 10... b6 {[%clk 0:03:07.8]} 11. Re1 {[%clk
0:03:02.7]} 11... Bb7 {[%clk 0:03:07.8]} 12. Bg5 {[%clk 0:02:56.5]} 12... Rc8
{[%clk 0:03:07.9]} 13. Qd3 {[%clk 0:02:54.5]} 13... Rc5 {[%clk 0:03:06.2]} 14.
Be3 {[%clk 0:02:52.1]} 14... Qa8 {[%clk 0:02:47.2]} 15. Nde2 {[%clk 0:02:40.6]}
15... Rcc8 {[%clk 0:02:44.6]} 16. Ng3 {[%clk 0:02:36.8]} 16... Nd7 {[%clk
0:02:40.5]} 17. Bd4 {[%clk 0:02:26.8]} 17... Ne5 {[%clk 0:02:12.1]} 18. Qd1
{[%clk 0:02:21.8]} 18... Bh6 {[%clk 0:01:58.5]} 19. Nd5 {[%clk 0:02:19.6]} 19...
Rfe8 {[%clk 0:01:57.5]} 20. c3 {[%clk 0:02:19.7]} 20... Nxb3 {[%clk 0:01:57.2]}
21. axb3 {[%clk 0:02:16.2]} 21... Bxd5 {[%clk 0:01:40.7]} 22. exd5 {[%clk
0:02:17.3]} 22... Qxd5 {[%clk 0:01:42.6]} 23. Rxa7 {[%clk 0:02:16.5]} 23... Nc6
{[%clk 0:01:37.7]} 24. Ra4 {[%clk 0:02:00.9]} 24... b5 {[%clk 0:01:34.2]} 25.
Ra1 {[%clk 0:01:47]} 25... Nxd4 {[%clk 0:01:25.7]} 26. Qxd4 {[%clk 0:01:39.7]}
26... Qxd4 {[%clk 0:01:10.3]} 27. cxd4 {[%clk 0:01:41.6]} 27... Bg7 {[%clk
0:01:09]} 28. d5 {[%clk 0:01:26.6]} 28... Bxb2 {[%clk 0:01:08.5]} 29. Ra7 {[%clk
0:01:27.6]} 29... Kf8 {[%clk 0:00:59]} 30. Re2 {[%clk 0:01:21.4]} 30... Be5
{[%clk 0:00:54.1]} 31. Rb7 {[%clk 0:01:05.8]} 31... Rc1+ {[%clk 0:00:50]} 32.
Kh2 {[%clk 0:01:05.9]} 32... Ra8 {[%clk 0:00:50.3]} 33. f4 {[%clk 0:00:51]}
33... Bf6 {[%clk 0:00:30.4]} 34. Rxb5 {[%clk 0:00:48.1]} 34... Raa1 {[%clk
0:00:29.6]} 35. b4 {[%clk 0:00:31.8]} 35... h5 {[%clk 0:00:28.7]} 36. Rb8+
{[%clk 0:00:29.1]} 36... Kg7 {[%clk 0:00:29.3]} 37. Ne4 {[%clk 0:00:15.6]} 37...
h4 {[%clk 0:00:30.1]} 38. g4 {[%clk 0:00:15.3]} 38... Rh1+ {[%clk 0:00:25.4]}
39. Kg2 {[%clk 0:00:16.6]} 39... Rag1+ {[%clk 0:00:26.7]} 40. Kf2 {[%clk
0:00:18.2]} 40... Bd4+ {[%clk 0:00:27.4]} 41. Kf3 {[%clk 0:00:16]} 41... Rxh3+
{[%clk 0:00:27.8]} 42. Ng3 {[%clk 0:00:16.8]} 42... hxg3 {[%clk 0:00:19.9]} 43.
Rxe7 {[%clk 0:00:15.5]} 43... g2+ {[%clk 0:00:19.8]} 44. Ke2 {[%clk 0:00:16.1]}
44... Re1+ {[%clk 0:00:16.4]} 45. Kxe1 {[%clk 0:00:17.4]} 45... g1=Q+ {[%clk
0:00:17.8]} 46. Kd2 {[%clk 0:00:18.2]} 46... Qf2+ {[%clk 0:00:17.9]} 47. Re2
{[%clk 0:00:17.5]} 47... Bc3+ {[%clk 0:00:18.4]} 48. Kd1 {[%clk 0:00:19]} 48...
Qf1+ {[%clk 0:00:19.1]} 49. Kc2 {[%clk 0:00:19.5]} 49... Qxe2+ {[%clk
0:00:19.9]} 50. Kb3 {[%clk 0:00:21.4]} 50... Bd4+ {[%clk 0:00:20.3]} 51. Ka4
{[%clk 0:00:22.1]} 51... Qa6# {[%clk 0:00:20.8]} 0-1

[Event "*** Titled Tuesday Blitz"]
[Site "Chess.com"]
[Date "2018.09.04"]
[Round "1"]
[White "LuisFSiles"]
[Black "TST2014"]
[Result "1-0"]
[WhiteElo "2206"]
[BlackElo "2520"]
[TimeControl "180+2"]
[EndTime "13:44:52 PDT"]
[Termination "LuisFSiles won by resignation"]

1. e4 {[%clk 0:02:59.8]} 1... c5 {[%clk 0:02:59.7]} 2. Nf3 {[%clk 0:02:59.6]}
2... Nc6 {[%clk 0:02:59.8]} 3. c3 {[%clk 0:02:58.3]} 3... Nf6 {[%clk 0:02:59]}
4. e5 {[%clk 0:02:55.7]} 4... Nd5 {[%clk 0:02:59.1]} 5. Bc4 {[%clk 0:02:52.7]}
5... Nb6 {[%clk 0:02:58.4]} 6. Bb3 {[%clk 0:02:53.5]} 6... d5 {[%clk 0:02:57.4]}
7. exd6 {[%clk 0:02:53.7]} 7... Qxd6 {[%clk 0:02:57.6]} 8. O-O {[%clk
0:02:48.2]} 8... Be6 {[%clk 0:02:56.1]} 9. Na3 {[%clk 0:02:39.3]} 9... Bxb3
{[%clk 0:02:45.8]} 10. axb3 {[%clk 0:02:38.2]} 10... Qd3 {[%clk 0:02:45.2]} 11.
Re1 {[%clk 0:02:33.5]} 11... Rd8 {[%clk 0:02:43]} 12. Re3 {[%clk 0:02:17.6]}
12... Qd7 {[%clk 0:02:40.6]} 13. Nc4 {[%clk 0:01:59.2]} 13... Nd5 {[%clk
0:02:29.6]} 14. Re4 {[%clk 0:01:52]} 14... e6 {[%clk 0:02:25.2]} 15. Nfe5 {[%clk
0:01:49.8]} 15... Nxe5 {[%clk 0:02:07.6]} 16. Nxe5 {[%clk 0:01:51.7]} 16... Qc7
{[%clk 0:02:09]} 17. Rxa7 {[%clk 0:01:42.6]} 17... Bd6 {[%clk 0:02:09.9]} 18.
Nc4 {[%clk 0:01:30.9]} 18... Bxh2+ {[%clk 0:02:09.7]} 19. Kh1 {[%clk 0:01:28.1]}
19... Bf4 {[%clk 0:02:03.8]} 20. Qg4 {[%clk 0:01:18.8]} 20... f5 {[%clk
0:02:02.4]} 21. Rxe6+ {[%clk 0:01:17.8]} 21... Kf7 {[%clk 0:01:44.8]} 22. Qxf5+
{[%clk 0:01:13.9]} 22... Nf6 {[%clk 0:01:46.3]} 23. Rb6 {[%clk 0:00:57.9]} 23...
Rhe8 {[%clk 0:01:33.5]} 24. Ne3 {[%clk 0:00:41.4]} 24... Re5 {[%clk 0:01:21.9]}
25. Rbxb7 {[%clk 0:00:39.2]} 25... Rxf5 {[%clk 0:01:20.4]} 26. Rxc7+ {[%clk
0:00:39.9]} 26... Bxc7 {[%clk 0:01:15.5]} 27. Rxc7+ {[%clk 0:00:41.8]} 27... Kg6
{[%clk 0:01:14.9]} 28. Nxf5 {[%clk 0:00:42.8]} 28... Kxf5 {[%clk 0:01:16.3]} 29.
Rxc5+ {[%clk 0:00:43.9]} 29... Ke6 {[%clk 0:01:13.3]} 30. d4 {[%clk 0:00:44.6]}
30... Ra8 {[%clk 0:01:10.3]} 31. Be3 {[%clk 0:00:41.9]} 31... Ng4 {[%clk
0:01:07.3]} 32. g3 {[%clk 0:00:39.5]} 32... Ra1+ {[%clk 0:01:05.3]} 33. Kg2
{[%clk 0:00:40.4]} 33... Rb1 {[%clk 0:01:06.7]} 34. Kf3 {[%clk 0:00:31.2]} 34...
Nh2+ {[%clk 0:01:06.1]} 35. Ke4 {[%clk 0:00:30.7]} 35... Rxb2 {[%clk 0:01:07.5]}
36. d5+ {[%clk 0:00:31.9]} 36... Kd7 {[%clk 0:01:04.9]} 37. b4 {[%clk
0:00:33.1]} 37... Ng4 {[%clk 0:01:04.4]} 38. f3 {[%clk 0:00:31.7]} 38... Nf6+
{[%clk 0:01:03.6]} 39. Kd3 {[%clk 0:00:33.1]} 39... Rg2 {[%clk 0:01:03.1]} 40.
Bf4 {[%clk 0:00:34]} 40... Rg1 {[%clk 0:00:56.6]} 41. Rc7+ {[%clk 0:00:34.9]}
41... Kd8 {[%clk 0:00:57.4]} 42. c4 {[%clk 0:00:36.2]} 42... Rd1+ {[%clk
0:00:56.8]} 43. Kc3 {[%clk 0:00:37.5]} 43... Rf1 {[%clk 0:00:57]} 44. Rxg7
{[%clk 0:00:37.2]} 44... Rxf3+ {[%clk 0:00:57.7]} 45. Kd4 {[%clk 0:00:37.9]}
45... Ke8 {[%clk 0:00:51.6]} 46. b5 {[%clk 0:00:34.8]} 46... h5 {[%clk 0:00:51]}
47. b6 {[%clk 0:00:34.3]} 47... h4 {[%clk 0:00:51.9]} 48. b7 {[%clk 0:00:33.1]}
48... Nd7 {[%clk 0:00:51.8]} 49. Rxd7 {[%clk 0:00:32.2]} 49... Kxd7 {[%clk
0:00:53.3]} 50. b8=Q {[%clk 0:00:33.4]} 50... hxg3 {[%clk 0:00:55]} 51. Bxg3
{[%clk 0:00:33.2]} 51... Rf7 {[%clk 0:00:54.8]} 52. Qd6+ {[%clk 0:00:33.4]}
52... Ke8 {[%clk 0:00:55.7]} 53. Qe6+ {[%clk 0:00:34.3]} 53... Kf8 {[%clk
0:00:56.7]} 54. Qxf7+ {[%clk 0:00:35.2]} 54... Kxf7 {[%clk 0:00:58.3]} 55. c5
{[%clk 0:00:36.6]} 55... Ke7 {[%clk 0:00:59.9]} 56. c6 {[%clk 0:00:37.5]} 56...
Kd8 {[%clk 0:01:01]} 57. d6 {[%clk 0:00:38.7]} 57... Kc8 {[%clk 0:01:02.6]} 58.
d7+ {[%clk 0:00:39.9]} 58... Kd8 {[%clk 0:01:03.9]} 59. Bh4+ {[%clk 0:00:41]}
59... Kc7 {[%clk 0:00:49.3]} 60. d8=Q+ {[%clk 0:00:41.3]} 60... Kxc6 {[%clk
0:00:49.5]} 61. Qc8+ {[%clk 0:00:41.6]} 61... Kd6 {[%clk 0:00:49.9]} 62. Bg3+
{[%clk 0:00:39.8]} 62... Ke7 {[%clk 0:00:50.5]} 63. Qc7+ {[%clk 0:00:38.8]}
63... Ke6 {[%clk 0:00:51]} 64. Qe5+ {[%clk 0:00:39.6]} 64... Kf7 {[%clk
0:00:51.4]} 65. Qf5+ {[%clk 0:00:39.5]} 65... Ke7 {[%clk 0:00:52]} 66. Bh4+
{[%clk 0:00:39.2]} 66... Kd6 {[%clk 0:00:52.3]} 67. Qf6+ {[%clk 0:00:40.4]}
67... Kd7 {[%clk 0:00:53]} 68. Kc5 {[%clk 0:00:41.1]} 68... Kc7 {[%clk
0:00:53.4]} 69. Qe7+ {[%clk 0:00:41.8]} 69... Kb8 {[%clk 0:00:53.7]} 70. Kb6
{[%clk 0:00:39.5]} 1-0

[Event "*** Titled Tuesday Blitz"]
[Site "Chess.com"]
[Date "2018.09.04"]
[Round "1"]
[White "biostatistician"]
[Black "lolo9292"]
[Result "1-0"]
[WhiteElo "2476"]
[BlackElo "2012"]
[TimeControl "180+2"]
[EndTime "13:44:53 PDT"]
[Termination "biostatistician won by resignation"]

1. d4 {[%clk 0:03:00.3]} 1... Nf6 {[%clk 0:02:50.7]} 2. Nf3 {[%clk 0:03:02.2]}
2... e6 {[%clk 0:02:51.6]} 3. c4 {[%clk 0:03:03]} 3... d6 {[%clk 0:02:52.4]} 4.
Nc3 {[%clk 0:03:04.1]} 4... Nbd7 {[%clk 0:02:52.4]} 5. e4 {[%clk 0:03:05.3]}
5... g6 {[%clk 0:02:53.6]} 6. Be2 {[%clk 0:03:03.9]} 6... Bg7 {[%clk 0:02:54.6]}
7. O-O {[%clk 0:03:05.6]} 7... h6 {[%clk 0:02:55.1]} 8. h3 {[%clk 0:03:03.9]}
8... b6 {[%clk 0:02:52.8]} 9. e5 {[%clk 0:03:00.4]} 9... Ng8 {[%clk 0:02:48.6]}
10. Bf4 {[%clk 0:03:01]} 10... dxe5 {[%clk 0:02:48.7]} 11. dxe5 {[%clk
0:03:01.4]} 11... Bb7 {[%clk 0:02:49.4]} 12. Qa4 {[%clk 0:03:01.1]} 12... Ne7
{[%clk 0:02:48.1]} 13. Rad1 {[%clk 0:03:02.5]} 13... g5 {[%clk 0:02:47.6]} 14.
Bg3 {[%clk 0:03:02.8]} 14... Bc6 {[%clk 0:02:47]} 15. Qc2 {[%clk 0:02:58.6]}
15... Qc8 {[%clk 0:02:45.5]} 16. b4 {[%clk 0:02:52.9]} 16... Rb8 {[%clk
0:02:44.1]} 17. Rfe1 {[%clk 0:02:32.9]} 17... O-O {[%clk 0:02:39.1]} 18. h4
{[%clk 0:02:14]} 18... g4 {[%clk 0:02:38.4]} 19. Nd4 {[%clk 0:02:14.4]} 19... h5
{[%clk 0:02:32.6]} 20. Ne4 {[%clk 0:01:57.8]} 20... Bxe4 {[%clk 0:02:27.2]} 21.
Qxe4 {[%clk 0:01:57.5]} 21... Ng6 {[%clk 0:02:25.8]} 22. Nc6 {[%clk 0:01:54.8]}
22... Ra8 {[%clk 0:02:26.1]} 23. Qxg6 {[%clk 0:01:52.9]} 23... fxg6 {[%clk
0:02:26.3]} 24. Ne7+ {[%clk 0:01:54.2]} 24... Kf7 {[%clk 0:02:24.3]} 25. Nxc8
{[%clk 0:01:56.1]} 25... Rd8 {[%clk 0:02:25]} 26. Nd6+ {[%clk 0:01:02.4]} 26...
cxd6 {[%clk 0:02:25.6]} 27. exd6 {[%clk 0:01:04.3]} 27... Rac8 {[%clk
0:02:25.9]} 28. Rc1 {[%clk 0:01:01.7]} 28... Bb2 {[%clk 0:02:23.5]} 29. Rc2
{[%clk 0:01:02.4]} 29... Ba3 {[%clk 0:02:19.6]} 30. Rb1 {[%clk 0:01:03.6]} 30...
a5 {[%clk 0:02:18]} 31. bxa5 {[%clk 0:01:01.8]} 31... bxa5 {[%clk 0:02:14.4]}
32. Rb7 {[%clk 0:01:03]} 32... Kf6 {[%clk 0:02:08.3]} 33. f3 {[%clk 0:01:00]}
33... Ne5 {[%clk 0:02:07.9]} 34. fxg4 {[%clk 0:00:56.6]} 34... hxg4 {[%clk
0:02:08]} 35. Bxe5+ {[%clk 0:00:57]} 35... Kxe5 {[%clk 0:02:09]} 36. Bxg4 {[%clk
0:00:58.8]} 36... Rxd6 {[%clk 0:02:10.3]} 37. Re2+ {[%clk 0:00:56.6]} 37... Kf6
{[%clk 0:02:04.5]} 38. Rf2+ {[%clk 0:00:57.3]} 38... Ke5 {[%clk 0:02:03.9]} 39.
Rb5+ {[%clk 0:00:58.8]} 39... Rc5 {[%clk 0:02:04.2]} 40. Re2+ {[%clk 0:00:58.7]}
40... Kf6 {[%clk 0:02:04.3]} 41. Kh2 {[%clk 0:00:58.2]} 41... Rxc4 {[%clk
0:02:01.7]} 42. Rf2+ {[%clk 0:00:59.6]} 42... Ke7 {[%clk 0:01:57.1]} 43. Rb7+
{[%clk 0:01:00.7]} 43... Rd7 {[%clk 0:01:58.3]} 44. Rxd7+ {[%clk 0:00:59]} 44...
Kxd7 {[%clk 0:01:59.1]} 45. Kh3 {[%clk 0:01:00.6]} 45... Rc3+ {[%clk 0:01:59.4]}
46. Rf3 {[%clk 0:00:53]} 46... Rxf3+ {[%clk 0:01:58]} 47. Bxf3 {[%clk
0:00:54.9]} 47... Ke7 {[%clk 0:01:50.1]} 48. Kg4 {[%clk 0:00:56.1]} 48... Kf6
{[%clk 0:01:51.1]} 49. Be4 {[%clk 0:00:56.8]} 49... Bd6 {[%clk 0:01:51]} 50. Kf3
{[%clk 0:00:55.8]} 50... Be5 {[%clk 0:01:49.7]} 51. Bd3 {[%clk 0:00:54.1]} 51...
Bd6 {[%clk 0:01:49.4]} 52. Ke4 {[%clk 0:00:53.8]} 52... Bg3 {[%clk 0:01:49.8]}
53. Be2 {[%clk 0:00:48.3]} 53... Bxh4 {[%clk 0:01:48.5]} 54. g4 {[%clk
0:00:48.6]} 54... Be1 {[%clk 0:01:48.5]} 55. Bd1 {[%clk 0:00:50.3]} 55... Bc3
{[%clk 0:01:49]} 56. Be2 {[%clk 0:00:52.2]} 56... e5 {[%clk 0:01:48.2]} 57. Bd1
{[%clk 0:00:54.1]} 57... Kg5 {[%clk 0:01:48.5]} 58. Be2 {[%clk 0:00:56]} 58...
Bd4 {[%clk 0:01:49.3]} 59. Bd1 {[%clk 0:00:57.9]} 59... Kh4 {[%clk 0:01:49.8]}
60. Be2 {[%clk 0:00:59.8]} 60... Kg3 {[%clk 0:01:50.8]} 61. Bf3 {[%clk
0:01:01.7]} 61... Kf2 {[%clk 0:01:51.8]} 62. Bd1 {[%clk 0:01:03.6]} 62... Kg2
{[%clk 0:01:52.5]} 63. Bf3+ {[%clk 0:01:05.5]} 63... Kf2 {[%clk 0:01:53.4]} 64.
Bd1 {[%clk 0:01:07.2]} 64... Ke1 {[%clk 0:01:54.5]} 65. Bb3 {[%clk 0:01:06.3]}
65... Kf2 {[%clk 0:01:54.9]} 66. Bf7 {[%clk 0:01:07.6]} 66... g5 {[%clk
0:01:54.9]} 67. Kf5 {[%clk 0:01:06.7]} 67... Kf3 {[%clk 0:01:55.7]} 68. Bd5+
{[%clk 0:01:04.5]} 68... Ke3 {[%clk 0:01:55.5]} 69. Kxg5 {[%clk 0:01:06]} 69...
Bb6 {[%clk 0:01:55.9]} 70. Kf5 {[%clk 0:01:07.1]} 70... Kd4 {[%clk 0:01:56.9]}
71. Be4 {[%clk 0:01:06.3]} 71... Bd8 {[%clk 0:01:58.2]} 72. Bb1 {[%clk
0:01:07.1]} 72... Be7 {[%clk 0:01:54.6]} 73. g5 {[%clk 0:01:03.9]} 73... e4
{[%clk 0:01:55.2]} 74. g6 {[%clk 0:01:03.3]} 74... Bf8 {[%clk 0:01:55.7]} 75.
Bxe4 {[%clk 0:01:04.8]} 75... a4 {[%clk 0:01:55.1]} 76. Bc2 {[%clk 0:01:03.3]}
76... a3 {[%clk 0:01:54.6]} 77. Kf6 {[%clk 0:01:04.5]} 77... Kc3 {[%clk
0:01:53.7]} 78. Bb3 {[%clk 0:01:05.8]} 1-0

[Event "*** Titled Tuesday Blitz"]
[Site "Chess.com"]
[Date "2018.09.04"]
[Round "1"]
[White "Karina_Oparina"]
[Black "Barcelona_Guy"]
[Result "0-1"]
[WhiteElo "2187"]
[BlackElo "2534"]
[TimeControl "180+2"]
[EndTime "13:45:00 PDT"]
[Termination "Barcelona_Guy won by resignation"]

1. c4 {[%clk 0:02:58.7]} 1... e6 {[%clk 0:02:59.5]} 2. Nc3 {[%clk 0:02:58.2]}
2... d5 {[%clk 0:03:00.2]} 3. cxd5 {[%clk 0:02:57.5]} 3... exd5 {[%clk
0:03:02.1]} 4. d4 {[%clk 0:02:57.4]} 4... c6 {[%clk 0:03:02.8]} 5. Qc2 {[%clk
0:02:56.9]} 5... Bd6 {[%clk 0:03:01.5]} 6. Nh3 {[%clk 0:02:50.1]} 6... Ne7
{[%clk 0:03:01.1]} 7. Bf4 {[%clk 0:02:45.8]} 7... Bxh3 {[%clk 0:02:46]} 8. Bxd6
{[%clk 0:02:45.5]} 8... Qxd6 {[%clk 0:02:47.9]} 9. gxh3 {[%clk 0:02:45.9]} 9...
Nd7 {[%clk 0:02:49]} 10. Bg2 {[%clk 0:02:44.9]} 10... Nf6 {[%clk 0:02:47.9]} 11.
e3 {[%clk 0:02:43]} 11... Ng6 {[%clk 0:02:48.4]} 12. O-O-O {[%clk 0:02:40.7]}
12... O-O-O {[%clk 0:02:45.3]} 13. Bf3 {[%clk 0:02:33.3]} 13... Kb8 {[%clk
0:02:45.1]} 14. Rdg1 {[%clk 0:02:30]} 14... Rhe8 {[%clk 0:02:44.5]} 15. Be2
{[%clk 0:02:25.1]} 15... Rc8 {[%clk 0:02:44]} 16. h4 {[%clk 0:02:19.9]} 16...
Nxh4 {[%clk 0:02:39.9]} 17. Rxg7 {[%clk 0:02:18.9]} 17... Ng6 {[%clk 0:02:40.7]}
18. Rxf7 {[%clk 0:02:13.6]} 18... c5 {[%clk 0:02:19.7]} 19. dxc5 {[%clk
0:01:47.9]} 19... Rxc5 {[%clk 0:02:20.1]} 20. Qb3 {[%clk 0:01:43.9]} 20... Re7
{[%clk 0:01:48.6]} 21. Rxe7 {[%clk 0:01:33.7]} 21... Qxe7 {[%clk 0:01:50.5]} 22.
Rd1 {[%clk 0:01:27.9]} 22... Ne4 {[%clk 0:01:47.9]} 23. Rxd5 {[%clk 0:01:16.8]}
23... Nxc3 {[%clk 0:01:43]} 24. bxc3 {[%clk 0:01:16.2]} 24... Rc7 {[%clk
0:01:37.1]} 25. Rb5 {[%clk 0:01:11]} 25... Ne5 {[%clk 0:01:30.6]} 26. Kb2 {[%clk
0:01:06.5]} 26... a6 {[%clk 0:01:27.1]} 27. Qg8+ {[%clk 0:01:02]} 27... Rc8
{[%clk 0:01:23.5]} 28. Rxe5 {[%clk 0:01:00.3]} 28... Qxe5 {[%clk 0:01:21.9]} 29.
Qg3 {[%clk 0:01:01.3]} 29... Qxg3 {[%clk 0:01:19.7]} 30. hxg3 {[%clk 0:00:57.5]}
30... Rf8 {[%clk 0:01:19.7]} 31. f3 {[%clk 0:00:53.5]} 31... Rg8 {[%clk
0:01:09]} 32. g4 {[%clk 0:00:53.7]} 32... h5 {[%clk 0:01:09.6]} 33. Kc2 {[%clk
0:00:51.2]} 33... h4 {[%clk 0:01:10]} 34. Bf1 {[%clk 0:00:51.1]} 34... Kc7
{[%clk 0:00:57.4]} 35. Bh3 {[%clk 0:00:47.8]} 35... Kd6 {[%clk 0:00:58.2]} 36.
f4 {[%clk 0:00:48.7]} 36... b5 {[%clk 0:00:56.2]} 37. g5 {[%clk 0:00:47.6]}
37... a5 {[%clk 0:00:45.5]} 38. Kd3 {[%clk 0:00:39.6]} 38... Kc5 {[%clk
0:00:44.1]} 39. Bf1 {[%clk 0:00:26]} 39... a4 {[%clk 0:00:39.8]} 40. a3 {[%clk
0:00:22.2]} 40... Rd8+ {[%clk 0:00:29.4]} 41. Kc2 {[%clk 0:00:22.7]} 41... Rg8
{[%clk 0:00:26.4]} 42. Kd3 {[%clk 0:00:22.6]} 42... Rg7 {[%clk 0:00:26.9]} 43.
Bh3 {[%clk 0:00:20.9]} 43... Rg8 {[%clk 0:00:26.7]} 44. Kc2 {[%clk 0:00:21.2]}
44... Re8 {[%clk 0:00:19]} 45. Kd3 {[%clk 0:00:21.5]} 45... Rd8+ {[%clk
0:00:20.2]} 46. Kc2 {[%clk 0:00:22.1]} 46... Kd5 {[%clk 0:00:21.4]} 47. Bg2+
{[%clk 0:00:20.2]} 47... Ke6 {[%clk 0:00:22.4]} 48. Bh3+ {[%clk 0:00:20.9]}
48... Kf7 {[%clk 0:00:22.9]} 49. Bf1 {[%clk 0:00:20.7]} 49... Kg6 {[%clk
0:00:22.4]} 50. Bxb5 {[%clk 0:00:18.8]} 50... h3 {[%clk 0:00:23.2]} 51. Bxa4
{[%clk 0:00:17.8]} 51... Rd6 {[%clk 0:00:21.8]} 52. Be8+ {[%clk 0:00:16.1]}
52... Kg7 {[%clk 0:00:21]} 53. f5 {[%clk 0:00:10.3]} 53... h2 {[%clk 0:00:20.6]}
54. f6+ {[%clk 0:00:11.1]} 54... Kf8 {[%clk 0:00:21.5]} 55. Bb5 {[%clk
0:00:10.8]} 55... h1=Q {[%clk 0:00:22.1]} 0-1